Cogmind - Beta 15 @@@ ROGUE MODE // 2025.06.21 @ 17:58:08 Player: Burcsboon Result: Destroyed by G-50 Soldier with Heavy Laser Performance ------------- Evolutions (2) 1000 Regions Visited (3) 600 Robots Destroyed (38) 190 Value Destroyed (941) 941 Prototype IDs (0) 0 Alien Tech Used (0) 0 Bonus (0) 0 TOTAL SCORE: 2731 Bonus ------- None Cogmind --------- Core Integrity 0/550 Matter 269/300 Energy 265/265 System Corruption 5% Temperature Cool (9) Movement Walking (190) Ox1 Location -8/Materials Parts ------- > --- POWER (2) -------- Improved Ion Engine > --- PROPULSION (4) --- Aluminum Leg Aluminum Leg > --- UTILITY (3) ------ Large Storage Unit > --- WEAPON (2) ------- Katana > --- INVENTORY (15) --- Improved Aluminum Leg Cryofiber Web Heat Sink Improved Heat Sink Medium Storage Unit Large Storage Unit Propulsion Shielding Small Laser Particle Gun Katana Peak State ------------ > --- POWER ------------ Light Ion Engine Light Nuclear Core > --- PROPULSION ------- Light Treads Light Treads Light Treads Aluminum Leg > --- UTILITY ---------- Heat Sink Large Storage Unit Improved Light Armor Plating > --- WEAPON ----------- Heavy Assault Rifle Grenade Launcher > --- INVENTORY -------- Improved Ion Engine Aluminum Leg Cryofiber Web Heat Sink Improved Heat Sink Medium Storage Unit Large Storage Unit Propulsion Shielding Small Laser [Rating: 17] Favorites ----------- Power Light Ion Engine Engine Light Ion Engine Power Core Light Nuclear Core Propulsion Aluminum Leg Treads Light Treads Leg Aluminum Leg Utility Small Storage Unit Device Heat Sink Storage Small Storage Unit Protection Improved Light Armor Plating Weapon Grenade Launcher Energy Gun Particle Gun Ballistic Gun Assault Rifle Launcher Grenade Launcher Slashing Weapon Katana Build | -11 -10 -9 -8 ------- Run | Yrd Mat Mat Mat Slots Evolved 4 | . . 2 2 Power 1 | . . . 1 Propulsion 2 | . . 2 . Utility 1 | . . . 1 Weapon . | . . . . Parts Attached 30 | 6 3 4 17 Power 5 | 1 . 1 3 Engine 4 | 1 . 1 2 Core 1 | . . . 1 Reactor . | . . . . Propulsion 12 | 2 . 3 7 Treads 4 | . . 1 3 Leg 8 | 2 . 2 4 Wheel . | . . . . Hover . | . . . . Flight . | . . . . Utility 5 | . 2 . 3 Device 1 | . . . 1 Storage 3 | . 2 . 1 Processor . | . . . . Hackware . | . . . . Protection 1 | . . . 1 Artifact . | . . . . Weapon 8 | 3 1 . 4 Energy Gun 2 | 1 . . 1 Energy Cannon . | . . . . Ballistic Gun 3 | 2 . . 1 Ballistic Cannon . | . . . . Launcher 2 | . 1 . 1 Special Weapon . | . . . . Impact Weapon . | . . . . Slashing Weapon 1 | . . . 1 Piercing Weapon . | . . . . Special Melee Weapon . | . . . . Unidentified Prototypes . | . . . . Parts Lost 18 | . . 1 17 Power 4 | . . 1 3 Propulsion 8 | . . . 8 Utility 2 | . . . 2 Weapon 4 | . . . 4 Highest Loss Streak 12 | . . 1 12 To Critical Strikes . | . . . . Average Backups 7 | 3 6 6 8 Power . | . . . . Propulsion 1 | 1 2 . 2 Utility 3 | . 3 3 4 Weapon 1 | . 1 2 1 Tool/Special . | . . . . Unused Backups 13 | . 2 2 9 Power . | . . . . Propulsion 3 | . . 2 1 Utility 8 | . 2 . 6 Weapon 2 | . . . 2 Tool/Special . | . . . . Average Slot Usage (%) 82 | . 94 86 72 Engine 10 | . 14 8 8 Treads 1 | . . 1 2 Leg 27 | . 28 32 24 Device 2 | . . . 5 Storage 16 | . 22 22 9 Protection 3 | . . . 6 Ballistic Gun 12 | . 20 11 6 Launcher 8 | . 7 11 7 Peak Build Rating 17 | 5 7 9 17 Average Rating 8 | 2 6 7 11 On Entrance 5 | . 5 7 9 Naked Turns . | . . . . Heaviest Build 35 | 6 18 18 35 Greatest Support 60 | 20 20 40 60 Greatest Overweight (x) 9 | . . . 9 Average Overweight (x) . | . . . . Largest Inventory Capacity 15 | 5 8 8 15 Average Capacity 10 | 5 7 8 15 Most Carried 15 | 5 8 8 15 Average Carried 7 | 3 6 6 8 Final Capacity 15 | 5 8 8 15 Final Carried 10 | 3 7 6 10 Class Distribution -------------------- 64% | Mutant 35% | Scavenger-Mutant Dominant Class ---------------- Mutant | -10/Materials Mutant | -9/Materials Scavenger-Mutant | -8/Materials Resources | -11 -10 -9 -8 ----------- Run | Yrd Mat Mat Mat Matter Collected 1007 | 270 111 207 419 Remotely . | . . . . Salvage Created 1075 | 34 99 341 601 Parts 86 | 2 11 30 43 Haulers Intercepted . | . . . . Recyclers Shooed 1 | . . . 1 Parts Field Recycled . | . . . . Retrieved Matter . | . . . . Parts Self-Destructed . | . . . . Prevented . | . . . . Kills | -11 -10 -9 -8 ------- Run | Yrd Mat Mat Mat Combat Hostiles Destroyed 23 | 1 4 6 12 Melee 2 | . . . 2 Guns 14 | 1 4 4 5 AOE 7 | . . 2 5 Classes Destroyed 9 | 1 2 4 2 Worker 3 | . . . 3 Builder 5 | . . 1 4 Tunneler 1 | . . 1 . Recycler 2 | . . 1 1 Operator 1 | . . . 1 Watcher 3 | . 1 1 1 Swarmer 6 | . 3 . 3 Grunt 9 | 1 1 2 5 Sentry 8 | . . 4 4 Best Kill Streak 5 | 1 3 4 5 Combat Bots Only 3 | 1 3 2 3 Max Kills in Single Turn 3 | 1 1 2 3 Gunslinging . | . . . . Exploded 2 | . . 1 2 Melee 1 | . . . 1 Uniques/NPCs Destroyed . | . . . . Combat | -11 -10 -9 -8 -------- Run | Yrd Mat Mat Mat Hostile Shots Fired 202 | 6 22 19 155 Missed 62 | 4 5 7 46 Hits 140 | 2 17 12 109 Projectile 140 | 2 17 12 109 AOE 1 | . . . 1 Critical Strikes 8 | . . 2 6 Damage Taken 2444 | 21 134 188 2101 Core 647 | . 54 38 555 Absorbed by Shields . | . . . . Core Remaining (%) 89 | 100 78 90 . Volleys Fired 106 | 5 18 22 61 Largest 2 | 2 2 2 2 Hottest 65 | 40 50 50 65 Shots Fired 147 | 10 32 32 73 Gun 117 | 10 31 22 54 Cannon . | . . . . Launcher 30 | . 1 10 19 Special . | . . . . Kinetic 114 | 10 31 22 51 Thermal 3 | . . . 3 Explosive 30 | . 1 10 19 Electromagnetic . | . . . . Robot Hit Streak 8 | 4 5 8 7 Robot Miss Streak 4 | 2 3 2 4 Penetration Max . | . . . . Secondary Targets . | . . . . Shots Hit Robots 86 | 5 14 19 48 Core Hits 64 | 2 7 15 40 Critical Kills . | . . . . Critical Parts Destroyed 2 | . . 1 1 Critical Strikes 3 | . . 1 2 Destroy 2 | . . 1 1 Sever 1 | . . . 1 Melee Attacks 10 | . . . 10 Impact . | . . . . Slashing 10 | . . . 10 Piercing . | . . . . Sneak Attacks . | . . . . Combat Hostiles . | . . . . Follow-up Attacks . | . . . . Damage Inflicted 2248 | 64 201 574 1409 Guns 960 | 64 159 191 546 Cannons . | . . . . Explosions 1105 | . 42 383 680 Melee 183 | . . . 183 Ramming . | . . . . Kinetic 915 | 64 159 191 501 Thermal 45 | . . . 45 Explosive 1105 | . 42 383 680 Electromagnetic . | . . . . Impact . | . . . . Slashing 183 | . . . 183 Piercing . | . . . . Highest Corruption 5 | . . . 5 Average Corruption 5 | . . . 5 Corruption Purged . | . . . . Corruption Blocked . | . . . . Effects 18 | . . . 18 Message Errors 4 | . . . 4 Matter Fused 3 | . . . 3 Heat Flow Errors 3 | . . . 3 Energy Discharges 1 | . . . 1 Parts Rejected 1 | . . . 1 Parts Fused 1 | . . . 1 Data Loss (minor) 2 | . . . 2 Data Loss (major) 1 | . . . 1 Misfires 1 | . . . 1 Alerts 1 | . . . 1 Overload Shots . | . . . . Overflow Damage 14 | . . 14 . Projectiles . | . . . . Explosions 14 | . . 14 . Melee . | . . . . Knockbacks . | . . . . Impact . | . . . . Kinetic . | . . . . Secondary . | . . . . Self-Inflicted Damage 86 | . . 29 57 Shots 5 | . . 1 4 Rammed . | . . . . Targets Rammed . | . . . . Kicked . | . . . . Crushed . | . . . . Highest Temperature 154 | 1 6 14 154 Average Temperature 41 | 1 6 9 48 Received Heat Transfer 1107 | 12 6 96 993 Siege Activations . | . . . . Martial Activations . | . . . . Shielding Activations . | . . . . Robots Disrupted . | . . . . Combat Hostiles . | . . . . Robots Corrupted . | . . . . Combat Hostiles . | . . . . Parts Fried . | . . . . Impact Corruptions . | . . . . Robots Melted . | . . . . Combat Hostiles . | . . . . Parts Melted . | . . . . Heat Transferred 111 | . . . 111 Parts Sabotaged . | . . . . Parts Stolen . | . . . . Parts Stripped . | . . . . Power Chain Reactions . | . . . . Alert | -11 -10 -9 -8 ------- Run | Yrd Mat Mat Mat Maximum Alert Level . | . . . . Low Security (%) 100 | 100 100 100 100 Level 1 . | . . . . Level 2 . | . . . . Level 3 . | . . . . Level 4 . | . . . . Level 5 . | . . . . High Security . | . . . . Max Security . | . . . . Peak Influence 164 | 20 63 164 149 Initial 56 | . 13 . 56 Average 51 | 2 11 82 72 Influence Increases 872 | 20 107 254 491 Destroy 0b10 Robot/C 460 | 20 80 120 240 Destroy 0b10 Robot/NC 75 | . 5 20 50 Destroy Leader 126 | . 22 52 52 Disable Machine 45 | . . . 45 Destroy Structure 151 | . . 62 89 Lose Combat Pursuer 15 | . . . 15 Influence Decreases 846 | . 127 120 599 Entered New Map 85 | . 7 . 78 Time Decay 596 | . 120 120 356 Lost Part 165 | . . . 165 Squads Dispatched 3 | . 1 1 1 Investigation 1 | . . . 1 Extermination . | . . . . Reinforcement 2 | . 1 1 . Assault . | . . . . Garrison . | . . . . Intercept . | . . . . Searches Triggered . | . . . . Construction Impeded . | . . . . Haulers Reinforced . | . . . . Active Scanning Responses . | . . . . Cargo Convoy Interrupts . | . . . . Stealth | -11 -10 -9 -8 --------- Run | Yrd Mat Mat Mat Distress Signals 2 | . . . 2 Communications Jammed . | . . . . Distress Signals . | . . . . Times Spotted 39 | 1 8 8 22 Peak Tracking Total 5 | 1 3 3 5 Tactical Retreats 1 | . . . 1 Traps | -11 -10 -9 -8 ------- Run | Yrd Mat Mat Mat Traps Triggered 1 | . . . 1 Indirectly . | . . . . Trap Hack Attempts . | . . . . Triggered . | . . . . Disarmed . | . . . . Reprogrammed . | . . . . Reused . | . . . . Traps Extracted . | . . . . Installed . | . . . . Triggered . | . . . . Machines | -11 -10 -9 -8 ---------- Run | Yrd Mat Mat Mat Machines Disabled 3 | . . . 3 Max in Single Turn 1 | . . . 1 Machines Repaired . | . . . . Machines Dismantled . | . . . . Machines Sabotaged . | . . . . Overloaded Fab Kills . | . . . . Hacking | -11 -10 -9 -8 --------- Run | Yrd Mat Mat Mat Machines Accessed . | . . . . Terminals . | . . . . Fabricators . | . . . . Repair Stations . | . . . . Recycling Units . | . . . . Scanalyzers . | . . . . Garrison Access . | . . . . Total Hacks . | . . . . Successful . | . . . . Failed . | . . . . Catastrophic . | . . . . Database Lockouts . | . . . . Manual . | . . . . Terminals . | . . . . Fabricators . | . . . . Repair Stations . | . . . . Recycling Units . | . . . . Scanalyzers . | . . . . Garrison Access . | . . . . Terminal Hacks . | . . . . Fabricator Hacks . | . . . . Repair Station Hacks . | . . . . Recycling Unit Hacks . | . . . . Scanalyzer . | . . . . Garrison Access Hacks . | . . . . Unauthorized Hacks . | . . . . Terminals . | . . . . Fabricators . | . . . . Repair Stations . | . . . . Recycling Units . | . . . . Scanalyzers . | . . . . Garrison Access . | . . . . Data Cores Recovered . | . . . . Used . | . . . . Hacking Detections . | . . . . Full Trace Events . | . . . . Feedback Events . | . . . . Feedback Blocked . | . . . . Robot Schematics Acquired . | . . . . Robots Built . | . . . . Authchips . | . . . . Time . | . . . . Total Robot Build Rating . | . . . . Part Schematics Acquired . | . . . . Parts Built . | . . . . Authchips . | . . . . Time . | . . . . Total Part Build Rating . | . . . . Parts Repaired . | . . . . Time . | . . . . Parts Recycled . | . . . . Recycled Matter . | . . . . Retrieved Matter . | . . . . Retrieved Components . | . . . . Parts Scanalyzed . | . . . . Part Schematics Acquired . | . . . . Parts Damaged . | . . . . Bothacking | -11 -10 -9 -8 ------------ Run | Yrd Mat Mat Mat Used RIF Installer . | . . . . Robots Hacked . | . . . . Non-combat . | . . . . Combat . | . . . . Robot Hacks Applied . | . . . . Relay Couplers Released . | . . . . Fabnet Peak Effective % . | . . . . Robots Rewired . | . . . . Allies Hacked . | . . . . Hacks Repelled . | . . . . Allies | -11 -10 -9 -8 -------- Run | Yrd Mat Mat Mat Total Allies . | . . . . Largest Group . | . . . . Highest-Rated Group . | . . . . Highest-Rated Ally . | . . . . Total Orders . | . . . . Ally Attacks . | . . . . Total Damage . | . . . . Kills . | . . . . Allies Corrupted . | . . . . Allies Melted . | . . . . Intel | -11 -10 -9 -8 ------- Run | Yrd Mat Mat Mat Active Infowar (turns) . | . . . . Robot Analysis Total . | . . . . Derelict Logs Recovered . | . . . . Drone Launches . | . . . . Drone Recoveries . | . . . . Exploration | -11 -10 -9 -8 ------------- Run | Yrd Mat Mat Mat Turns Passed 1770 | 93 547 325 805 Spaces Moved 1050 | 69 406 218 357 Core 26 | 25 . . 1 Treads 37 | . . . 37 Legs 987 | 44 406 218 319 Wheels . | . . . . Hover . | . . . . Flight . | . . . . Fastest Speed 50 | 50 120 120 120 Average Speed 135 | 94 120 120 169 Slowest Speed 500 | 120 120 120 500 Overloaded Moves . | . . . . Propulsion Burnouts . | . . . . Robots Hopped . | . . . . Potential Cave-ins . | . . . . Cave-ins Triggered 1 | . . . 1 Exploration Rate (%) 25 | 6 49 18 28 Regions Visited 3 Branch Regions . Pre-discovered Areas . | . . . . Known Exits Taken . | . . . . Unknown Exits Taken 3 | 1 1 1 . Scrap Searched . | . . . . Spaces Dug 10 | . . . 10 Terrain Destroyed 148 | . . 60 88 Melee . | . . . . Projectile . | . . . . AOE 148 | . . 60 88 Terrain Rammed . | . . . . Walls Destroyed . | . . . . Machines Disabled . | . . . . Actions | -11 -10 -9 -8 --------- Run | Yrd Mat Mat Mat Total 1247 | 87 437 251 472 Wait 4 | . 1 . 3 Move 1047 | 68 405 217 357 Hop . | . . . . Pick Up 40 | 7 7 5 21 Fast Attach 3 | 1 2 . . Attach 27 | 5 1 4 17 Detach 1 | 1 . . . Swap . | . . . . Drop 9 | . 3 3 3 Fire 106 | 5 18 22 61 Melee 10 | . . . 10 Ram . | . . . . Kick . | . . . . Crush . | . . . . Escape Stasis . | . . . . Rewire . | . . . . Trap . | . . . . Miscellaneous . | . . . . Route ------- -11/Scrapyard -10/Materials -9/Materials (discovered 2 exits: *Mat / [*Sto]) -8/Materials History --------- Turn | Location | Event 2 | -11/Scrapyard | Met Revision 17 65 | -11/Scrapyard | Discovered new exit (range 8) 94 | -11/Scrapyard | Entered Materials 310 | -10/Materials | Build established: Mutant 546 | -10/Materials | Discovered new exit (range 5) 641 | -10/Materials | Entered another Materials area 641 | -9/Materials | Evolved 2 slots: Propulsion x2 656 | -9/Materials | Discovered new exit (range 16) 893 | -9/Materials | Discovered new exit (range 9) 966 | -9/Materials | Entered another Materials area 966 | -8/Materials | Evolved 2 slots: Power x1, Utility x1 1042 | -8/Materials | Crushed by falling debris 1073 | -8/Materials | Lost 4 parts (1p1n2w) 1414 | -8/Materials | Build established: Scavenger-Mutant 1734 | -8/Materials | Core integrity fell below 50% 1753 | -8/Materials | Core integrity fell below 20% 1771 | -8/Materials | Destroyed by G-50 Soldier with Heavy Laser Last Messages --------------- 01733_ G-47 Trooper Aluminum Leg severed. 01734_ U-05 Engineer lays Concrete. 01735_ U-05 Engineer builds a Wall. 01735_ Lgt. Treads destroyed. 01739_ U-05 Engineer lays Concrete. 01740_ Q=&LEYE UE=5RK 7IKFMJJ#7>GWQ# 01741_ Lgt. Treads destroyed. 01744_ Heat Sink destroyed. 01745_ G-47 Trooper destroyed. 01746_ Critical hit (Burn: +37). 01747_ K-01 Serf collects debris. 01755_ G-47 Trooper destroyed. 01757_ K-01 Serf collects debris. 01757_ K-01 Serf destroyed. 01760_ K-01 Serf collects debris. 01763_ Acquired Aluminum Leg. 01764_ U-05 Engineer builds a Door. 01764_ K-01 Serf collects debris. 01766_ Acquired 40 matter. 01767_ K-01 Serf collects debris. Map ----- +----------------------------------------------------+ | # #????????????????????????????????????????? | | # #????????????????????????????????????????? | | # ####?????????????????????????????????????? | | ##### !##????????????????????????????????????? | | ????# !#????????????????????????????????????? | | ????# !#????????????????????????????????????? | | ????# #????????????????????????????????????? | | ????# !#????????????????????????????????????? | | ????# !##???##########???????????????????????? | | ????# ####????# #???????????????????????? | | ##### #???????# """ ##??????????????????????? | | # #???????# """ ##??????????????????????? | | # #???????# "" ##??????????????????????? | | + #?? ????# "" " ##??????????????????????? | | # #? ???# "" ##??????????????????????? | | # ##? ??# "" ##??????????????????????? | | # ## ? ??# """ ###?????????????????????? | | ##### #? ? ?# #?????????????????????? | | ??# ###/##+######+#########??????????????????? | | # %=#%! #??????????????????? | | + # "" #??????????????????? | | # ! / # | T" #??????????????????? | | ??# """ !/ ] # "" #??????????????????? | | ????# """ ![ ]] # ####???????######??? | | ????### """ ]! ###/#### ########## # | | ??????# @%*= k | | ??????# %k| *=!g !% = | | ??????# #######+#########+########## % | | ??????# ##?????# | # ???????? ###/ | | ??????# #??????# """ # ! "" ???????##??? | | ??????# +??????# """ # T" ???????????? | | ??????# #??????# """ # "" ???????????? | | ??????# #??????# # """ ???????????? | | ?????? #??????# """ ! """ #??????????? | | ????? ???????# """ # """ #??????????? | | ?????? #####???????# """ # #??????????? | | ???????????????????# #####?#####??????????? | | ???????????????????##########????????????????????? | | ?????????????????????????????????????????????????? | | ?????????????????????????????????????????????????? | | ?????????????????????????????????????????????????? | | ?????????????????????????????????????????????????? | | ?????????????????????????????????????????????????? | | ?????????????????????????????????????????????????? | | ?????????????????????????????????????????????????? | | ?????????????????????????????????????????????????? | | ?????????????????????????????????????????????????? | | ?????????????????????????????????????????????????? | | ?????????????????????????????????????????????????? | | ?????????????????????????????????????????????????? | +----------------------------------------------------+ Best States ------------- Heat Dissipation 41 Energy Generation 19 Energy Capacity 265 Matter Stores 300 Matter Capacity 300 Sight Range 16 Terrain Scan Density 10 Armor Coverage 150 Evasion (%) 55 Recoil Reduction 3 Item Schematics ----------------- None Robot Schematics ------------------ None Fabricated ------------ Nothing Repaired ---------- Nothing Alien Tech Used ----------------- None Achievements -------------- Maybe Next Time I'll Detach My Launcher Unlikely Earthworm Challenges ------------ None Game ------ Seed DefenseCompositeTerminator Manual? 0 Play Time 00:30:16 Cumulative 3.5 hours Start 2025.06.21 @ 17:20:05 End 2025.06.21 @ 17:58:08 Sessions 1 Manual Loads 0 Difficulty Rogue Special Mode None Game No. 3 Rogue 3 Adventurer 0 Explorer 0 Win Type - Total 0 Types 0/0/0/0/0/0/0/0/0/0 Lore% 2 Gallery% 5 Achievement% 9 Wizard Run 0 Options --------- Layout 1 ASCII 0 Keyboard 0 Movement Mouse Keybinds 0 Fullscreen 1 Font 32/SmallcapsGlow Map View 50x35 Zoom Use 0% Tactical HUD 1 Map Filters NONE Filters NONE Steam 1 RUN: b34fd805-8e2c-4f30-b861-420b4b82d451